[Event "*** Qualifier 2: Titled Tuesday 3|2 Blitz"]
[Site "Chess.com"]
[Date "2017.04.11"]
[Round "8"]
[White "RitvarsReimanis"]
[Black "Maitreia"]
[Result "1-0"]
[WhiteElo "2431"]
[BlackElo "2482"]
[TimeControl "180+2"]
[EndTime "14:55:53 PDT"]
[Termination "RitvarsReimanis won on time"]

1. d4 {[%clk 0:02:50.4]} 1... Nf6 {[%clk 0:03:00.3]} 2. c4 {[%clk 0:02:51.3]}
2... e5 {[%clk 0:03:00.9]} 3. e3 {[%clk 0:02:45.4]} 3... Bb4+ {[%clk 0:03:00.9]}
4. Bd2 {[%clk 0:02:45.9]} 4... Bxd2+ {[%clk 0:03:01.2]} 5. Qxd2 {[%clk
0:02:47.8]} 5... exd4 {[%clk 0:03:01.8]} 6. exd4 {[%clk 0:02:47.5]} 6... O-O
{[%clk 0:03:02.9]} 7. Nc3 {[%clk 0:02:48.6]} 7... Re8+ {[%clk 0:03:03.9]} 8. Be2
{[%clk 0:02:50]} 8... d5 {[%clk 0:03:05.8]} 9. c5 {[%clk 0:02:50.2]} 9... Bg4
{[%clk 0:03:02.6]} 10. O-O-O {[%clk 0:02:48.6]} 10... Bxe2 {[%clk 0:02:59.6]}
11. Ngxe2 {[%clk 0:02:49]} 11... Nbd7 {[%clk 0:02:51.5]} 12. Kb1 {[%clk
0:02:47.6]} 12... c6 {[%clk 0:02:52.2]} 13. Ng3 {[%clk 0:02:45.8]} 13... Nf8
{[%clk 0:02:44.3]} 14. Rhe1 {[%clk 0:02:45.2]} 14... Qd7 {[%clk 0:02:45.4]} 15.
f3 {[%clk 0:02:40.2]} 15... Ng6 {[%clk 0:02:43.5]} 16. Rxe8+ {[%clk 0:02:34.5]}
16... Rxe8 {[%clk 0:02:43.8]} 17. Re1 {[%clk 0:02:35.5]} 17... Kf8 {[%clk
0:02:42.6]} 18. Kc2 {[%clk 0:02:31.1]} 18... h5 {[%clk 0:02:42]} 19. Rxe8+
{[%clk 0:02:07.4]} 19... Kxe8 {[%clk 0:02:42.5]} 20. Qe3+ {[%clk 0:02:00.1]}
20... Kf8 {[%clk 0:02:42.8]} 21. Nge2 {[%clk 0:01:57.3]} 21... Qf5+ {[%clk
0:02:41.8]} 22. Kd2 {[%clk 0:01:53.5]} 22... h4 {[%clk 0:02:38.1]} 23. b4 {[%clk
0:01:50.8]} 23... a6 {[%clk 0:02:36.6]} 24. a4 {[%clk 0:01:51.6]} 24... Nh5
{[%clk 0:02:36]} 25. g4 {[%clk 0:01:39.6]} 25... hxg3 {[%clk 0:02:35.2]} 26.
hxg3 {[%clk 0:01:39.6]} 26... Nf6 {[%clk 0:02:31.4]} 27. Qd3 {[%clk 0:01:34.6]}
27... Qg5+ {[%clk 0:02:29.4]} 28. Qe3 {[%clk 0:01:35.2]} 28... Qf5 {[%clk
0:02:26.3]} 29. Qd3 {[%clk 0:01:36]} 29... Qh3 {[%clk 0:02:25.4]} 30. b5 {[%clk
0:01:32.4]} 30... axb5 {[%clk 0:02:27.3]} 31. axb5 {[%clk 0:01:34.3]} 31... Qf1
{[%clk 0:02:27]} 32. bxc6 {[%clk 0:01:33.8]} 32... bxc6 {[%clk 0:02:27.8]} 33.
Ke3 {[%clk 0:01:02.8]} 33... Ne7 {[%clk 0:02:19.2]} 34. g4 {[%clk 0:00:57.2]}
34... Ng6 {[%clk 0:02:16.4]} 35. Qf5 {[%clk 0:00:52.8]} 35... Nh4 {[%clk
0:02:09.5]} 36. Qc8+ {[%clk 0:00:44]} 36... Ne8 {[%clk 0:02:10.6]} 37. Qxc6
{[%clk 0:00:41.1]} 37... Qxf3+ {[%clk 0:02:10.5]} 38. Kd2 {[%clk 0:00:42.5]}
38... Qxg4 {[%clk 0:02:06.9]} 39. Qxd5 {[%clk 0:00:42.5]} 39... Nf3+ {[%clk
0:01:54.7]} 40. Ke3 {[%clk 0:00:43.3]} 40... Ng5 {[%clk 0:01:53.4]} 41. c6
{[%clk 0:00:42.6]} 41... Ne6 {[%clk 0:01:53.8]} 42. Qe5 {[%clk 0:00:29.8]} 42...
Qh3+ {[%clk 0:01:38.9]} 43. Kd2 {[%clk 0:00:28.6]} 43... N8c7 {[%clk 0:01:37.2]}
44. d5 {[%clk 0:00:24.7]} 44... Qh6+ {[%clk 0:01:29.9]} 45. Kd1 {[%clk
0:00:23.8]} 45... Qh1+ {[%clk 0:01:06.9]} 46. Kc2 {[%clk 0:00:24]} 46... Nxd5
{[%clk 0:01:01.3]} 47. Qxd5 {[%clk 0:00:21.9]} 47... Qxd5 {[%clk 0:00:55.4]} 48.
Nxd5 {[%clk 0:00:23.8]} 48... g5 {[%clk 0:00:53.3]} 49. Kd3 {[%clk 0:00:23.8]}
49... Ke8 {[%clk 0:00:52.2]} 50. Nd4 {[%clk 0:00:23.6]} 50... Kd8 {[%clk
0:00:44.4]} 51. Nxe6+ {[%clk 0:00:21.5]} 51... fxe6 {[%clk 0:00:46.3]} 52. Nb4
{[%clk 0:00:17.6]} 52... e5 {[%clk 0:00:34.3]} 53. Nd5 {[%clk 0:00:17.7]} 53...
g4 {[%clk 0:00:32.1]} 54. Ke4 {[%clk 0:00:16.3]} 54... Kc8 {[%clk 0:00:32.8]}
55. Kxe5 {[%clk 0:00:16.9]} 55... g3 {[%clk 0:00:34]} 56. Ne3 {[%clk 0:00:18]}
56... Kc7 {[%clk 0:00:33.7]} 57. Kd5 {[%clk 0:00:19.3]} 57... Kc8 {[%clk
0:00:34.7]} 58. Kd6 {[%clk 0:00:20.3]} 58... Kd8 {[%clk 0:00:36]} 59. Ng2 {[%clk
0:00:19.2]} 59... Kc8 {[%clk 0:00:36.8]} 60. c7 {[%clk 0:00:20.6]} 1-0

[Event "*** Qualifier 2: Titled Tuesday 3|2 Blitz"]
[Site "Chess.com"]
[Date "2017.04.11"]
[Round "8"]
[White "Spartakus1975"]
[Black "Konavets"]
[Result "1/2-1/2"]
[WhiteElo "2542"]
[BlackElo "2596"]
[TimeControl "180+2"]
[EndTime "14:56:22 PDT"]
[Termination "Game drawn by stalemate"]

1. e4 {[%clk 0:02:51.4]} 1... e5 {[%clk 0:02:54.3]} 2. Nf3 {[%clk 0:02:51]} 2...
Nc6 {[%clk 0:02:55.5]} 3. Bb5 {[%clk 0:02:51.8]} 3... Nf6 {[%clk 0:02:57.1]} 4.
O-O {[%clk 0:02:51.7]} 4... Nxe4 {[%clk 0:02:54.3]} 5. d4 {[%clk 0:02:52.6]}
5... Nd6 {[%clk 0:02:55.1]} 6. Ba4 {[%clk 0:02:54.1]} 6... e4 {[%clk 0:02:53.4]}
7. Re1 {[%clk 0:02:54.2]} 7... Be7 {[%clk 0:02:54.5]} 8. Ne5 {[%clk 0:02:55.2]}
8... O-O {[%clk 0:02:55.6]} 9. Nc3 {[%clk 0:02:56.6]} 9... Bf6 {[%clk
0:02:41.5]} 10. Bf4 {[%clk 0:02:56.8]} 10... Re8 {[%clk 0:02:36.7]} 11. Nxe4
{[%clk 0:02:57.6]} 11... Nxe4 {[%clk 0:02:15.2]} 12. Rxe4 {[%clk 0:02:58]} 12...
a6 {[%clk 0:02:03.1]} 13. Bb3 {[%clk 0:02:16.3]} 13... d5 {[%clk 0:01:59.7]} 14.
Nxc6 {[%clk 0:02:15.8]} 14... bxc6 {[%clk 0:01:58.6]} 15. Bxc7 {[%clk
0:02:15.5]} 15... Qd7 {[%clk 0:02:00]} 16. Rxe8+ {[%clk 0:02:16.3]} 16... Qxe8
{[%clk 0:02:01.9]} 17. c3 {[%clk 0:02:17]} 17... Bf5 {[%clk 0:02:00.7]} 18. Bf4
{[%clk 0:02:06.7]} 18... Qe4 {[%clk 0:01:59.6]} 19. Qd2 {[%clk 0:02:06.9]} 19...
Re8 {[%clk 0:01:58.9]} 20. Ba4 {[%clk 0:01:38.2]} 20... Qe6 {[%clk 0:01:53.6]}
21. Be3 {[%clk 0:01:27.2]} 21... h5 {[%clk 0:01:52.5]} 22. Re1 {[%clk
0:01:20.8]} 22... h4 {[%clk 0:01:52]} 23. f3 {[%clk 0:01:14]} 23... h3 {[%clk
0:01:51.3]} 24. g3 {[%clk 0:01:10.4]} 24... Bg5 {[%clk 0:01:46.4]} 25. Kf2
{[%clk 0:01:05.9]} 25... Bf6 {[%clk 0:01:22.6]} 26. Bf4 {[%clk 0:01:06.2]} 26...
Qc8 {[%clk 0:01:18.1]} 27. Rxe8+ {[%clk 0:01:05.1]} 27... Qxe8 {[%clk 0:01:20]}
28. Qe2 {[%clk 0:01:03.7]} 28... Qc8 {[%clk 0:01:20.9]} 29. b4 {[%clk
0:00:57.6]} 29... g5 {[%clk 0:01:12.8]} 30. Be5 {[%clk 0:00:57.3]} 30... Be7
{[%clk 0:01:13.9]} 31. g4 {[%clk 0:00:58.1]} 31... Be6 {[%clk 0:01:11.9]} 32.
Bc2 {[%clk 0:00:57]} 32... f6 {[%clk 0:01:09.7]} 33. Bg3 {[%clk 0:00:57.7]}
33... Kf7 {[%clk 0:01:11]} 34. Bd3 {[%clk 0:00:53.3]} 34... a5 {[%clk
0:01:06.8]} 35. bxa5 {[%clk 0:00:54.2]} 35... c5 {[%clk 0:01:08.3]} 36. a6
{[%clk 0:00:52.7]} 36... cxd4 {[%clk 0:01:09.6]} 37. cxd4 {[%clk 0:00:53.3]}
37... Qc3 {[%clk 0:01:10.6]} 38. Qe3 {[%clk 0:00:44.7]} 38... Qb2+ {[%clk
0:00:40.7]} 39. Be2 {[%clk 0:00:44.1]} 39... Qxa2 {[%clk 0:00:42.1]} 40. Bb8
{[%clk 0:00:43.3]} 40... Bd7 {[%clk 0:00:26.8]} 41. a7 {[%clk 0:00:41.6]} 41...
Bb5 {[%clk 0:00:27.8]} 42. Kf1 {[%clk 0:00:20.1]} 42... Qb1+ {[%clk 0:00:26.2]}
43. Kf2 {[%clk 0:00:20.4]} 43... Qa2 {[%clk 0:00:27.8]} 44. f4 {[%clk
0:00:17.6]} 44... gxf4 {[%clk 0:00:23.1]} 45. Bxf4 {[%clk 0:00:19.2]} 45... Bxe2
{[%clk 0:00:19.2]} 46. Qxe2 {[%clk 0:00:19.1]} 46... Qxa7 {[%clk 0:00:20.8]} 47.
Qe3 {[%clk 0:00:11.7]} 47... Qa2+ {[%clk 0:00:20.5]} 48. Qe2 {[%clk 0:00:12.8]}
48... Qa4 {[%clk 0:00:17.7]} 49. Be3 {[%clk 0:00:13.8]} 49... Bd6 {[%clk
0:00:16.7]} 50. Qd3 {[%clk 0:00:14.6]} 50... Qa2+ {[%clk 0:00:15.7]} 51. Bd2
{[%clk 0:00:14.3]} 51... Bb4 {[%clk 0:00:07.5]} 52. Ke2 {[%clk 0:00:11.6]} 52...
Bxd2 {[%clk 0:00:04.4]} 53. Qxd2 {[%clk 0:00:12.3]} 53... Qc4+ {[%clk
0:00:06.3]} 54. Ke3 {[%clk 0:00:11.7]} 54... Kg6 {[%clk 0:00:05.5]} 55. Kf3
{[%clk 0:00:10.8]} 55... Qb3+ {[%clk 0:00:05.7]} 56. Kf4 {[%clk 0:00:10.9]}
56... Qb1 {[%clk 0:00:03.9]} 57. Qf2 {[%clk 0:00:10.5]} 57... Qd3 {[%clk
0:00:04.6]} 58. Qf3 {[%clk 0:00:10.3]} 58... Qxd4+ {[%clk 0:00:04.3]} 59. Kg3
{[%clk 0:00:12]} 59... Qe4 {[%clk 0:00:03.7]} 60. Qxe4+ {[%clk 0:00:13]} 60...
dxe4 {[%clk 0:00:05.6]} 61. Kxh3 {[%clk 0:00:14.6]} 61... f5 {[%clk 0:00:06.4]}
62. Kg3 {[%clk 0:00:15.9]} 62... fxg4 {[%clk 0:00:07]} 63. Kxg4 {[%clk
0:00:16.7]} 63... e3 {[%clk 0:00:08.4]} 64. Kf3 {[%clk 0:00:17.9]} 64... Kh7
{[%clk 0:00:10.3]} 65. Kxe3 {[%clk 0:00:19.3]} 65... Kh8 {[%clk 0:00:12.2]} 66.
Kf4 {[%clk 0:00:20.7]} 66... Kg8 {[%clk 0:00:14.1]} 67. Kg5 {[%clk 0:00:22.3]}
67... Kh8 {[%clk 0:00:15.4]} 68. h4 {[%clk 0:00:24.1]} 68... Kg8 {[%clk
0:00:17.3]} 69. Kg6 {[%clk 0:00:25.7]} 69... Kh8 {[%clk 0:00:19.2]} 70. h5
{[%clk 0:00:27.6]} 70... Kg8 {[%clk 0:00:21.1]} 71. h6 {[%clk 0:00:29.5]} 71...
Kh8 {[%clk 0:00:23]} 72. h7 {[%clk 0:00:31.1]} 1/2-1/2

[Event "*** Qualifier 2: Titled Tuesday 3|2 Blitz"]
[Site "Chess.com"]
[Date "2017.04.11"]
[Round "8"]
[White "Kacparov"]
[Black "Infernal_XaM"]
[Result "1/2-1/2"]
[WhiteElo "2619"]
[BlackElo "2739"]
[TimeControl "180+2"]
[EndTime "14:57:18 PDT"]
[Termination "Game drawn by agreement"]

1. e4 {[%clk 0:03:01.9]} 1... d6 {[%clk 0:02:59.4]} 2. d4 {[%clk 0:03:02.1]}
2... g6 {[%clk 0:03:00.7]} 3. Nc3 {[%clk 0:03:02.5]} 3... Bg7 {[%clk 0:03:02.3]}
4. f4 {[%clk 0:03:02.6]} 4... a6 {[%clk 0:02:59.6]} 5. Nf3 {[%clk 0:03:03.6]}
5... b5 {[%clk 0:03:00.7]} 6. Bd3 {[%clk 0:03:03.7]} 6... Bb7 {[%clk 0:03:01.8]}
7. O-O {[%clk 0:03:04.6]} 7... b4 {[%clk 0:03:01.5]} 8. Ne2 {[%clk 0:03:05.2]}
8... Nf6 {[%clk 0:03:02.2]} 9. e5 {[%clk 0:03:06]} 9... Nd5 {[%clk 0:03:02.7]}
10. c4 {[%clk 0:03:02.7]} 10... bxc3 {[%clk 0:03:03.2]} 11. bxc3 {[%clk
0:03:03.9]} 11... e6 {[%clk 0:03:04.1]} 12. Rb1 {[%clk 0:03:00.9]} 12... Qc8
{[%clk 0:03:04]} 13. c4 {[%clk 0:03:01.6]} 13... Ne7 {[%clk 0:03:04.4]} 14. Qb3
{[%clk 0:02:57.2]} 14... Bc6 {[%clk 0:03:04.3]} 15. Be3 {[%clk 0:02:48.2]} 15...
Nd7 {[%clk 0:03:02.3]} 16. Nc3 {[%clk 0:02:42]} 16... Rb8 {[%clk 0:03:02.1]} 17.
Qc2 {[%clk 0:02:30.9]} 17... O-O {[%clk 0:03:01]} 18. Rxb8 {[%clk 0:02:27.4]}
18... Qxb8 {[%clk 0:03:01.5]} 19. Be4 {[%clk 0:02:04.8]} 19... Qa8 {[%clk
0:03:01.4]} 20. Bxc6 {[%clk 0:02:05.5]} 20... Qxc6 {[%clk 0:03:01.7]} 21. Qd3
{[%clk 0:02:05.7]} 21... Nb6 {[%clk 0:02:51.9]} 22. Nd2 {[%clk 0:01:59.9]} 22...
dxe5 {[%clk 0:02:46.5]} 23. fxe5 {[%clk 0:02:00.6]} 23... Rd8 {[%clk 0:02:47.4]}
24. Qe2 {[%clk 0:02:00.8]} 24... Nf5 {[%clk 0:02:48.1]} 25. c5 {[%clk
0:01:44.4]} 25... Na4 {[%clk 0:01:44.5]} 26. Nxa4 {[%clk 0:01:43.2]} 26... Qxa4
{[%clk 0:01:45]} 27. Nf3 {[%clk 0:01:42.8]} 27... Rb8 {[%clk 0:01:44.6]} 28. Bf2
{[%clk 0:01:42.3]} 28... Bh6 {[%clk 0:01:44.5]} 29. g4 {[%clk 0:01:41.7]} 29...
Ne7 {[%clk 0:01:44.7]} 30. h3 {[%clk 0:01:38.7]} 30... Nd5 {[%clk 0:01:45.1]}
31. g5 {[%clk 0:01:29.2]} 31... Bf8 {[%clk 0:01:36.8]} 32. Bg3 {[%clk 0:01:27]}
32... Qa3 {[%clk 0:01:33.6]} 33. Rf2 {[%clk 0:00:59.9]} 33... Be7 {[%clk
0:01:26]} 34. Kh2 {[%clk 0:00:59.3]} 34... Nc3 {[%clk 0:01:08.5]} 35. Qd3 {[%clk
0:00:56.9]} 35... Rb2 {[%clk 0:01:08]} 36. Nd2 {[%clk 0:00:54.3]} 36... Nb5
{[%clk 0:00:41]} 37. Qxa3 {[%clk 0:00:55]} 37... Nxa3 {[%clk 0:00:42]} 38. Ne4
{[%clk 0:00:56.6]} 38... Rb4 {[%clk 0:00:38.5]} 39. Rd2 {[%clk 0:00:51.3]} 39...
Nb5 {[%clk 0:00:36.4]} 40. Bf2 {[%clk 0:00:50.5]} 40... Kg7 {[%clk 0:00:37.7]}
41. h4 {[%clk 0:00:51.1]} 41... h6 {[%clk 0:00:38.7]} 42. Kg2 {[%clk 0:00:50.5]}
42... hxg5 {[%clk 0:00:39]} 43. hxg5 {[%clk 0:00:52.4]} 43... Kf8 {[%clk
0:00:39.7]} 44. Kf3 {[%clk 0:00:53]} 44... Ke8 {[%clk 0:00:41.1]} 45. Be3 {[%clk
0:00:52.5]} 45... Kd7 {[%clk 0:00:41.9]} 46. d5 {[%clk 0:00:43.6]} 46... exd5
{[%clk 0:00:40.8]} 47. Rxd5+ {[%clk 0:00:45.5]} 47... Ke6 {[%clk 0:00:41.6]} 48.
Rd2 {[%clk 0:00:39.8]} 48... Kxe5 {[%clk 0:00:42.2]} 49. Bf4+ {[%clk 0:00:39.6]}
49... Ke6 {[%clk 0:00:43.2]} 50. Rd3 {[%clk 0:00:24.3]} 50... Rc4 {[%clk
0:00:38.2]} 51. Re3 {[%clk 0:00:23.4]} 51... Kd7 {[%clk 0:00:39.2]} 52. Nf6+
{[%clk 0:00:19.9]} 52... Bxf6 {[%clk 0:00:34.6]} 53. gxf6 {[%clk 0:00:21]} 53...
Nd4+ {[%clk 0:00:36.2]} 54. Kg2 {[%clk 0:00:17.8]} 54... Nf5 {[%clk 0:00:35]}
55. Rd3+ {[%clk 0:00:18.1]} 55... Ke6 {[%clk 0:00:30.3]} 56. Bxc7 {[%clk
0:00:17.5]} 56... Rxc5 {[%clk 0:00:31.4]} 57. Bf4 {[%clk 0:00:15.1]} 57... Rc2+
{[%clk 0:00:30]} 58. Kf3 {[%clk 0:00:16.2]} 58... Rxa2 {[%clk 0:00:30.5]} 59.
Rc3 {[%clk 0:00:16.7]} 59... Kxf6 {[%clk 0:00:30.5]} 60. Rc6+ {[%clk 0:00:17.6]}
60... Ke7 {[%clk 0:00:31.6]} 61. Rc7+ {[%clk 0:00:18]} 61... Ke6 {[%clk
0:00:32.4]} 62. Rc6+ {[%clk 0:00:19.3]} 62... Kd5 {[%clk 0:00:33]} 63. Rf6
{[%clk 0:00:20.6]} 63... Nd4+ {[%clk 0:00:26.9]} 64. Kg4 {[%clk 0:00:20]} 64...
Rg2+ {[%clk 0:00:26.9]} 65. Kh3 {[%clk 0:00:20.9]} 65... Rf2 {[%clk 0:00:26.6]}
66. Kg3 {[%clk 0:00:21.6]} 66... Rf1 {[%clk 0:00:24.7]} 67. Kg2 {[%clk
0:00:18.4]} 67... Ra1 {[%clk 0:00:09.3]} 68. Rxf7 {[%clk 0:00:19.3]} 68... Nf5
{[%clk 0:00:10.1]} 69. Rf6 {[%clk 0:00:16.3]} 69... Ke4 {[%clk 0:00:11.1]} 70.
Bg5 {[%clk 0:00:17]} 70... Ra2+ {[%clk 0:00:11.5]} 71. Kg1 {[%clk 0:00:15]}
71... Nd4 {[%clk 0:00:12]} 72. Rxg6 {[%clk 0:00:13.1]} 72... Kf5 {[%clk
0:00:11.4]} 73. Rg8 {[%clk 0:00:04.4]} 73... Nf3+ {[%clk 0:00:12.4]} 74. Kf1
{[%clk 0:00:06.1]} 74... Nxg5 {[%clk 0:00:14]} 75. Ke1 {[%clk 0:00:07.7]} 75...
Ke4 {[%clk 0:00:15.2]} 76. Rxg5 {[%clk 0:00:07.6]} 76... Kd3 {[%clk 0:00:14.8]}
77. Rg3+ {[%clk 0:00:08.6]} 77... Ke4 {[%clk 0:00:15.9]} 78. Kd1 {[%clk
0:00:09.6]} 78... a5 {[%clk 0:00:16.7]} 79. Kc1 {[%clk 0:00:10.7]} 79... Kd4
{[%clk 0:00:17.7]} 80. Kb1 {[%clk 0:00:12]} 80... Rf2 {[%clk 0:00:16.3]} 81. Rg5
{[%clk 0:00:12]} 1/2-1/2

[Event "*** Qualifier 2: Titled Tuesday 3|2 Blitz"]
[Site "Chess.com"]
[Date "2017.04.11"]
[Round "8"]
[White "Witik"]
[Black "TomsKantans"]
[Result "0-1"]
[WhiteElo "2517"]
[BlackElo "2498"]
[TimeControl "180+2"]
[EndTime "15:00:06 PDT"]
[Termination "TomsKantans won on time"]

1. e4 {[%clk 0:02:58.6]} 1... c5 {[%clk 0:02:59.6]} 2. Nf3 {[%clk 0:02:59.7]}
2... Nf6 {[%clk 0:03:00.3]} 3. Nc3 {[%clk 0:03:00.5]} 3... Nc6 {[%clk 0:03:01]}
4. d4 {[%clk 0:02:58.2]} 4... d5 {[%clk 0:03:01.9]} 5. e5 {[%clk 0:02:50.8]}
5... cxd4 {[%clk 0:03:02.6]} 6. Nb5 {[%clk 0:02:45.4]} 6... Ng4 {[%clk
0:02:46.8]} 7. Bf4 {[%clk 0:02:25.9]} 7... g5 {[%clk 0:02:15.8]} 8. Bg3 {[%clk
0:02:22.4]} 8... Bg7 {[%clk 0:02:06.1]} 9. e6 {[%clk 0:02:22.7]} 9... Bxe6
{[%clk 0:02:06.4]} 10. Nc7+ {[%clk 0:02:19.6]} 10... Kd7 {[%clk 0:02:01]} 11.
Nxa8 {[%clk 0:02:16.2]} 11... Qa5+ {[%clk 0:01:55.4]} 12. Qd2 {[%clk 0:02:16.6]}
12... Qxd2+ {[%clk 0:01:52.7]} 13. Kxd2 {[%clk 0:02:17.3]} 13... Rxa8 {[%clk
0:01:52.7]} 14. h4 {[%clk 0:02:12.8]} 14... gxh4 {[%clk 0:01:49]} 15. Rxh4
{[%clk 0:02:11.6]} 15... h6 {[%clk 0:01:45]} 16. Bb5 {[%clk 0:02:10.5]} 16... a6
{[%clk 0:01:40.5]} 17. Be2 {[%clk 0:02:08.4]} 17... f5 {[%clk 0:01:32.2]} 18.
Re1 {[%clk 0:02:04.8]} 18... Bf7 {[%clk 0:01:31.4]} 19. Nh2 {[%clk 0:01:54.8]}
19... Nf6 {[%clk 0:01:26.7]} 20. f3 {[%clk 0:01:56]} 20... e5 {[%clk 0:01:26.9]}
21. Nf1 {[%clk 0:01:45.6]} 21... Bg6 {[%clk 0:01:17.5]} 22. Bf2 {[%clk
0:01:43.5]} 22... Re8 {[%clk 0:01:11.6]} 23. c3 {[%clk 0:01:31.6]} 23... dxc3+
{[%clk 0:01:11.1]} 24. bxc3 {[%clk 0:01:32.8]} 24... e4 {[%clk 0:00:55.2]} 25.
f4 {[%clk 0:01:33.6]} 25... Rc8 {[%clk 0:00:39.4]} 26. Ne3 {[%clk 0:01:28.5]}
26... d4 {[%clk 0:00:28.1]} 27. cxd4 {[%clk 0:01:27.2]} 27... Nxd4 {[%clk
0:00:30]} 28. Rd1 {[%clk 0:01:23.7]} 28... Nxe2 {[%clk 0:00:29.9]} 29. Kxe2+
{[%clk 0:01:24.6]} 29... Ke6 {[%clk 0:00:31.3]} 30. Rd4 {[%clk 0:01:16.1]} 30...
Bh5+ {[%clk 0:00:29.7]} 31. Kd2 {[%clk 0:01:15.2]} 31... Be8 {[%clk 0:00:28.9]}
32. Rh1 {[%clk 0:01:09.2]} 32... b5 {[%clk 0:00:25.8]} 33. Rd1 {[%clk
0:01:03.2]} 33... Nh5 {[%clk 0:00:21.1]} 34. Rd5 {[%clk 0:01:01]} 34... Bc3+
{[%clk 0:00:21.8]} 35. Kc2 {[%clk 0:00:51]} 35... Be1+ {[%clk 0:00:22.4]} 36.
Kb1 {[%clk 0:00:49.3]} 36... Bxf2 {[%clk 0:00:22.5]} 37. Re5+ {[%clk 0:00:44.1]}
37... Kf7 {[%clk 0:00:23.3]} 38. Nxf5 {[%clk 0:00:42.9]} 38... Ra8 {[%clk
0:00:16.5]} 39. Rd6 {[%clk 0:00:35.2]} 39... Nf6 {[%clk 0:00:16.7]} 40. Nxh6+
{[%clk 0:00:33.2]} 40... Kg7 {[%clk 0:00:17.9]} 41. Nf5+ {[%clk 0:00:32.3]}
41... Kg6 {[%clk 0:00:18.2]} 42. Ne7+ {[%clk 0:00:30.3]} 42... Kf7 {[%clk
0:00:19.1]} 43. g4 {[%clk 0:00:28.1]} 43... Nxg4 {[%clk 0:00:19.6]} 44. Rxe4
{[%clk 0:00:29.2]} 44... Nf6 {[%clk 0:00:19.6]} 45. Ree6 {[%clk 0:00:25.1]}
45... Bh4 {[%clk 0:00:18.8]} 46. f5 {[%clk 0:00:23.6]} 46... Bd7 {[%clk
0:00:18.8]} 47. Nd5 {[%clk 0:00:24.6]} 47... Bxe6 {[%clk 0:00:19.5]} 48. fxe6+
{[%clk 0:00:25.4]} 48... Kg6 {[%clk 0:00:20.9]} 49. e7 {[%clk 0:00:22.8]} 49...
Re8 {[%clk 0:00:21.6]} 50. Rxa6 {[%clk 0:00:23.2]} 50... Kf7 {[%clk 0:00:22.3]}
51. Nxf6 {[%clk 0:00:18.7]} 51... Bxf6 {[%clk 0:00:24.2]} 52. Rb6 {[%clk
0:00:20]} 52... Rxe7 {[%clk 0:00:25.4]} 53. Rxb5 {[%clk 0:00:21.1]} 53... Re1+
{[%clk 0:00:27.3]} 54. Kc2 {[%clk 0:00:22.1]} 54... Ke6 {[%clk 0:00:28.8]} 55.
a4 {[%clk 0:00:22.8]} 55... Bd4 {[%clk 0:00:29.7]} 56. Kb3 {[%clk 0:00:24]}
56... Kd7 {[%clk 0:00:30.5]} 57. Kc4 {[%clk 0:00:25.3]} 57... Bf2 {[%clk
0:00:29.5]} 58. Rf5 {[%clk 0:00:25.9]} 58... Bg1 {[%clk 0:00:29.7]} 59. Kb5
{[%clk 0:00:27]} 59... Rb1+ {[%clk 0:00:28.9]} 60. Ka6 {[%clk 0:00:23.1]} 60...
Rb6+ {[%clk 0:00:27.4]} 61. Ka5 {[%clk 0:00:23.6]} 61... Rg6 {[%clk 0:00:26.9]}
62. Kb5 {[%clk 0:00:22.1]} 62... Kc7 {[%clk 0:00:26.2]} 63. a5 {[%clk
0:00:23.3]} 63... Rg7 {[%clk 0:00:24.4]} 64. a6 {[%clk 0:00:23]} 64... Ba7
{[%clk 0:00:24.2]} 65. Rh5 {[%clk 0:00:21.5]} 65... Kd6 {[%clk 0:00:24.4]} 66.
Rh6+ {[%clk 0:00:22.3]} 66... Kd5 {[%clk 0:00:25.5]} 67. Rh5+ {[%clk 0:00:23.2]}
67... Kd6 {[%clk 0:00:26.6]} 68. Rh6+ {[%clk 0:00:24.4]} 68... Kd7 {[%clk
0:00:27.9]} 69. Rh5 {[%clk 0:00:23.8]} 69... Re7 {[%clk 0:00:27]} 70. Rd5+
{[%clk 0:00:22.5]} 70... Kc7 {[%clk 0:00:28]} 71. Rh5 {[%clk 0:00:23.2]} 71...
Be3 {[%clk 0:00:28.9]} 72. Rf5 {[%clk 0:00:24]} 72... Kb8 {[%clk 0:00:29.4]} 73.
Rf6 {[%clk 0:00:21.9]} 73... Ka7 {[%clk 0:00:30.3]} 74. Rc6 {[%clk 0:00:21]}
74... Re5+ {[%clk 0:00:30]} 75. Kc4 {[%clk 0:00:21.8]} 75... Bb6 {[%clk
0:00:31.2]} 76. Rf6 {[%clk 0:00:22]} 76... Kxa6 {[%clk 0:00:31.7]} 77. Kd3
{[%clk 0:00:22.9]} 77... Kb5 {[%clk 0:00:32.6]} 78. Rf3 {[%clk 0:00:23.5]} 78...
Kc6 {[%clk 0:00:29.5]} 79. Kc4 {[%clk 0:00:24.2]} 79... Re4+ {[%clk 0:00:30.3]}
80. Kd3 {[%clk 0:00:25.3]} 80... Rd4+ {[%clk 0:00:31.5]} 81. Kc3 {[%clk
0:00:26.7]} 81... Rh4 {[%clk 0:00:32.2]} 82. Kd3 {[%clk 0:00:27]} 82... Bc7
{[%clk 0:00:31.8]} 83. Rf5 {[%clk 0:00:28]} 83... Bd6 {[%clk 0:00:31.5]} 84. Ke3
{[%clk 0:00:29.2]} 84... Bc5+ {[%clk 0:00:32.1]} 85. Kd3 {[%clk 0:00:28.9]}
85... Rd4+ {[%clk 0:00:32.5]} 86. Kc3 {[%clk 0:00:28.7]} 86... Kb5 {[%clk
0:00:33.3]} 87. Rh5 {[%clk 0:00:29.8]} 87... Ra4 {[%clk 0:00:31.4]} 88. Kd3
{[%clk 0:00:30.8]} 88... Ra3+ {[%clk 0:00:32.4]} 89. Ke4 {[%clk 0:00:31.8]}
89... Kc4 {[%clk 0:00:31.2]} 90. Rh4 {[%clk 0:00:29.1]} 90... Re3+ {[%clk
0:00:29.6]} 91. Kf5+ {[%clk 0:00:30.3]} 91... Kd5 {[%clk 0:00:30.9]} 92. Rh7
{[%clk 0:00:30.2]} 92... Rf3+ {[%clk 0:00:30.4]} 93. Kg4 {[%clk 0:00:31.3]}
93... Rf8 {[%clk 0:00:30.3]} 94. Rh5+ {[%clk 0:00:30.1]} 94... Kd4 {[%clk
0:00:29.9]} 95. Rh1 {[%clk 0:00:31]} 95... Ke4 {[%clk 0:00:28.9]} 96. Kg5 {[%clk
0:00:29.6]} 96... Be3+ {[%clk 0:00:24.2]} 97. Kg6 {[%clk 0:00:30.3]} 97... Rf2
{[%clk 0:00:22.9]} 98. Rh7 {[%clk 0:00:29]} 98... Bc5 {[%clk 0:00:22]} 99. Rf7
{[%clk 0:00:28.8]} 99... Rg2+ {[%clk 0:00:22.1]} 100. Kf6 {[%clk 0:00:30]}
100... Bd4+ {[%clk 0:00:20.3]} 101. Ke6 {[%clk 0:00:24.9]} 101... Rg6+ {[%clk
0:00:20.7]} 102. Kd7 {[%clk 0:00:26.2]} 102... Kd5 {[%clk 0:00:21.7]} 103. Rh7
{[%clk 0:00:24.9]} 103... Ra6 {[%clk 0:00:21.1]} 104. Rh5+ {[%clk 0:00:18.1]}
104... Be5 {[%clk 0:00:21.8]} 0-1